Cogmind - Beta 17 @@@ ROGUE MODE // 2026.08.05 @ 23:39:52 Player: ShuSh Result: Destroyed by 6H-CON(R) with Subdweller Machine Gun Performance ------------- Evolutions (0) 0 Regions Visited (3) 600 Robots Destroyed (31) 155 Value Destroyed (923) 923 Prototype IDs (2) 40 Alien Tech Used (0) 0 Bonus (0) 0 TOTAL SCORE: 1718 Bonus ------- None Cogmind --------- Core Integrity 0/250 Matter 275/300 Energy 200/200 System Corruption 0% Temperature Cool (0) Movement Rolling (105) Ox1 Location -10/Subcaves Parts ------- > --- POWER (1) -------- Subdweller Power Source > --- PROPULSION (2) --- Armored Wheel Armored Wheel > --- UTILITY (2) ------ Improved Heat Sink Large Storage Unit > --- WEAPON (2) ------- Particle Gun Plasma Flamer > --- INVENTORY (15) --- Ion Engine Light Nuclear Core Armored Wheel Subdweller Monowheel Large Battery (200) Large Matter Pod (150) Signal Interpreter ECM Suite Scrap Shield Grenade Launcher Plasma Cutter Peak State ------------ > --- POWER ------------ Subdweller Power Source > --- PROPULSION ------- Armored Wheel Armored Wheel > --- UTILITY ---------- Improved Heat Sink Large Storage Unit > --- WEAPON ----------- Particle Gun Plasma Flamer > --- INVENTORY -------- Ion Engine Light Nuclear Core Armored Wheel Subdweller Monowheel Large Battery Large Matter Pod Signal Interpreter ECM Suite Scrap Shield Grenade Launcher Plasma Cutter [Rating: 18] Favorites ----------- Power Ion Engine Engine Ion Engine Propulsion Armored Wheel Treads Light Treads Leg Aluminum Leg Wheel Armored Wheel Flight Unit Flight Unit Utility Large Storage Unit Device Heat Sink Storage Large Storage Unit Protection Light Armor Plating Weapon Heavy Assault Rifle Energy Gun Medium Laser Ballistic Gun Heavy Assault Rifle Special Weapon Plasma Flamer Build | -11 -10 -10 -10 ------- Run | Yrd Mat Min Sub Slots Evolved . | . . . . Power . | . . . . Propulsion . | . . . . Utility . | . . . . Weapon . | . . . . Parts Attached 45 | 5 25 11 4 Power 8 | 1 4 2 1 Engine 8 | 1 4 2 1 Core . | . . . . Reactor . | . . . . Propulsion 11 | 2 7 2 . Treads 1 | . 1 . . Leg 4 | 2 2 . . Wheel 5 | . 4 1 . Hover . | . . . . Flight 1 | . . 1 . Utility 14 | . 9 4 1 Device 8 | . 6 1 1 Storage 2 | . 2 . . Processor . | . . . . Hackware . | . . . . Protection 4 | . 1 3 . Artifact . | . . . . Weapon 12 | 2 5 3 2 Energy Gun 3 | . 2 . 1 Energy Cannon . | . . . . Ballistic Gun 7 | 2 2 3 . Ballistic Cannon . | . . . . Launcher . | . . . . Special Weapon 2 | . 1 . 1 Impact Weapon . | . . . . Slashing Weapon . | . . . . Piercing Weapon . | . . . . Special Melee Weapon . | . . . . Unidentified Prototypes . | . . . . Parts Lost 10 | . 1 6 3 Power 1 | . . 1 . Propulsion 1 | . 1 . . Utility 3 | . . 2 1 Weapon 5 | . . 3 2 Highest Loss Streak 2 | . 1 2 2 To Critical Strikes 2 | . . 1 1 Average Backups 13 | 3 13 14 13 Power 1 | . 1 1 2 Propulsion 2 | 2 2 1 1 Utility 5 | . 5 6 5 Weapon 3 | . 3 3 3 Tool/Special . | . . . . Unused Backups 29 | 1 13 4 11 Power 3 | . . . 3 Propulsion 9 | 1 5 1 2 Utility 12 | . 6 2 4 Weapon 4 | . 2 1 1 Tool/Special 1 | . . . 1 Average Slot Usage (%) 99 | . 99 99 95 Engine 13 | . 14 13 14 Leg 9 | . 16 . . Wheel 18 | . 11 27 28 Device 5 | . 8 . 3 Storage 13 | . 13 14 14 Protection 8 | . 5 14 6 Energy Gun 4 | . 7 . 3 Ballistic Gun 22 | . 20 27 19 Peak Build Rating 18 | 5 14 14 18 Average Rating 11 | 2 9 13 14 On Entrance 8 | . 5 13 14 Avg Prop Armor Cover (%) 8 | . 8 . . Naked Turns . | . . . . Heaviest Build 36 | 6 34 36 36 Greatest Support 24 | 20 24 24 24 Greatest Overweight (x) 2 | . 2 2 1 Average Overweight (x) . | . . 1 1 Largest Inventory Capacity 15 | 5 15 15 15 Average Capacity 14 | 5 14 15 15 Most Carried 15 | 5 15 15 15 Average Carried 13 | 3 13 14 14 Final Capacity 15 | 5 15 15 15 Final Carried 15 | 5 15 14 12 Class Distribution -------------------- 100% | Mutant Dominant Class ---------------- Mutant | -10/Materials Mutant | -10/Mines Mutant | -10/Subcaves Resources | -11 -10 -10 -10 ----------- Run | Yrd Mat Min Sub Matter Collected 1355 | 262 646 412 35 Remotely . | . . . . Salvage Created 1143 | 37 611 433 62 Parts 78 | 3 41 30 4 Haulers Intercepted 1 | . 1 . . Recyclers Shooed . | . . . . Parts Field Recycled . | . . . . Retrieved Matter . | . . . . Parts Self-Destructed 2 | . . . 2 Prevented . | . . . . Parts Restored . | . . . . Kills | -11 -10 -10 -10 ------- Run | Yrd Mat Min Sub Combat Hostiles Destroyed 27 | 1 13 11 2 Guns 27 | 1 13 11 2 Classes Destroyed 7 | 1 4 1 1 Hauler 1 | . 1 . . Recycler 1 | . 1 . . Operator 2 | . 2 . . Swarmer 6 | . 3 3 . Grunt 17 | 1 10 6 . Sentry 2 | . . 2 . Subdweller 2 | . . . 2 Best Kill Streak 3 | 1 3 3 1 Combat Bots Only 3 | 1 3 3 1 Max Kills in Single Turn 2 | 1 2 1 1 Gunslinging . | . . . . Exploded . | . . . . Melee . | . . . . Uniques/NPCs Destroyed . | . . . . Combat | -11 -10 -10 -10 -------- Run | Yrd Mat Min Sub Hostile Shots Fired 198 | 3 72 103 20 Missed 56 | 1 27 23 5 Hits 142 | 2 45 80 15 Projectile 142 | 2 45 80 15 Critical Strikes 5 | . . 4 1 Damage Taken 1918 | 24 513 1031 350 Core 253 | . 90 94 69 Absorbed by Shields . | . . . . Core Remaining (%) 100 | 100 . . . Volleys Fired 115 | 3 59 43 10 Largest 2 | 2 2 2 2 Hottest 100 | 40 100 46 65 Shots Fired 224 | 6 117 86 15 Gun 223 | 6 116 86 15 Cannon . | . . . . Launcher . | . . . . Special 1 | . 1 . . Kinetic 177 | 6 75 86 10 Thermal 47 | . 42 . 5 Explosive . | . . . . Electromagnetic . | . . . . Robot Hit Streak 13 | 3 11 13 6 Robot Miss Streak 4 | 2 4 4 1 Penetration Max . | . . . . Secondary Targets 4 | . . 4 . Max Gunslinging Chain 1 | . . 1 . Shots Hit Robots 148 | 4 75 56 13 Core Hits 57 | 2 30 21 4 Critical Kills . | . . . . Critical Parts Destroyed 1 | . . 1 . Critical Strikes 1 | . . 1 . Destroy 1 | . . 1 . Melee Attacks . | . . . . Impact . | . . . . Slashing . | . . . . Piercing . | . . . . Sneak Attacks . | . . . . Combat Hostiles . | . . . . Follow-up Attacks . | . . . . Damage Inflicted 2035 | 42 990 805 198 Guns 2035 | 42 990 805 198 Cannons . | . . . . Explosions . | . . . . Melee . | . . . . Ramming . | . . . . Kinetic 1627 | 42 643 805 137 Thermal 408 | . 347 . 61 Explosive . | . . . . Electromagnetic . | . . . . Impact . | . . . . Slashing . | . . . . Piercing . | . . . . Highest Corruption . | . . . . Average Corruption . | . . . . Corruption Purged . | . . . . Corruption Blocked . | . . . . Overload Shots . | . . . . Overflow Damage . | . . . . Projectiles . | . . . . Explosions . | . . . . Melee . | . . . . Knockbacks . | . . . . Impact . | . . . . Kinetic . | . . . . Secondary . | . . . . Self-Inflicted Damage . | . . . . Shots . | . . . . Rammed . | . . . . Targets Rammed . | . . . . Kicked . | . . . . Crushed . | . . . . Highest Temperature 133 | 12 32 133 . Average Temperature 29 | 9 8 34 . Received Heat Transfer 789 | 12 252 474 51 Siege Activations . | . . . . Martial Activations . | . . . . Shielding Activations . | . . . . Robots Disrupted . | . . . . Combat Hostiles . | . . . . Robots Corrupted . | . . . . Combat Hostiles . | . . . . Parts Fried . | . . . . Impact Corruptions . | . . . . Robots Melted . | . . . . Combat Hostiles . | . . . . Parts Melted 1 | . 1 . . Heat Transferred 1065 | . 917 . 148 Parts Sabotaged . | . . . . Parts Stolen . | . . . . Parts Stripped . | . . . . Power Chain Reactions . | . . . . Alert | -11 -10 -10 -10 ------- Run | Yrd Mat Min Sub Maximum Alert Level . | . . . . Low Security (%) 100 | 100 100 100 . Level 1 . | . . . . Level 2 . | . . . . Level 3 . | . . . . Level 4 . | . . . . Level 5 . | . . . . High Security . | . . . . Max Security . | . . . . Peak Influence 112 | 20 112 94 . Initial 24 | . 6 24 . Average 26 | 3 31 19 . Influence Increases 708 | 20 425 263 . Destroy 0b10 Robot/C 500 | 20 260 220 . Destroy 0b10 Robot/NC 20 | . 20 . . Destroy Leader 112 | . 72 40 . Allied During Kill 3 | . . 3 . Successful Hack 10 | . 10 . . Disable Machine 15 | . 15 . . Destroy Structure 3 | . 3 . . Lose Combat Pursuer 45 | . 45 . . Influence Decreases 708 | 10 371 327 . Entered New Map 44 | . 4 40 . Time Decay 634 | 10 357 267 . Lost Part 30 | . 10 20 . Squads Dispatched 4 | . 4 . . Investigation 2 | . 2 . . Extermination . | . . . . Reinforcement 2 | . 2 . . Assault . | . . . . Garrison . | . . . . Intercept . | . . . . Searches Triggered . | . . . . Construction Impeded . | . . . . Haulers Reinforced . | . . . . Active Scanning Responses . | . . . . Cargo Convoy Interrupts . | . . . . Stealth | -11 -10 -10 -10 --------- Run | Yrd Mat Min Sub Distress Signals 2 | . 2 . . Communications Jammed . | . . . . Distress Signals . | . . . . Times Spotted 50 | 1 29 14 6 Peak Tracking Total 4 | 1 4 3 3 Tactical Retreats 3 | . 3 . . Traps | -11 -10 -10 -10 ------- Run | Yrd Mat Min Sub Traps Triggered 1 | . 1 . . Indirectly . | . . . . Trap Hack Attempts . | . . . . Triggered . | . . . . Disarmed . | . . . . Reprogrammed . | . . . . Reused . | . . . . Traps Extracted . | . . . . Installed . | . . . . Triggered . | . . . . Machines | -11 -10 -10 -10 ---------- Run | Yrd Mat Min Sub Machines Disabled 1 | . 1 . . Max in Single Turn 1 | . 1 . . Machines Repaired . | . . . . Machines Dismantled . | . . . . Machines Sabotaged . | . . . . Overloaded Fab Kills . | . . . . Hacking | -11 -10 -10 -10 --------- Run | Yrd Mat Min Sub Machines Accessed 8 | . 8 . . Terminals 6 | . 6 . . Fabricators . | . . . . Repair Stations . | . . . . Recycling Units 2 | . 2 . . Scanalyzers . | . . . . Garrison Access . | . . . . Total Hacks 18 | . 18 . . Successful 13 | . 13 . . Failed 5 | . 5 . . Catastrophic 2 | . 2 . . Database Lockouts . | . . . . Manual . | . . . . Terminals 16 | . 16 . . Fabricators . | . . . . Repair Stations . | . . . . Recycling Units 2 | . 2 . . Scanalyzers . | . . . . Garrison Access . | . . . . Terminal Hacks 11 | . 11 . . Record 7 | . 7 . . Prototype ID Bank 1 | . 1 . . Branch Access Points 1 | . 1 . . Maintenance Status 1 | . 1 . . Hauler Manifests 1 | . 1 . . Fabricator Hacks . | . . . . Repair Station Hacks . | . . . . Recycling Unit Hacks 2 | . 2 . . Report Inventory 2 | . 2 . . Scanalyzer . | . . . . Garrison Access Hacks . | . . . . Unauthorized Hacks . | . . . . Terminals . | . . . . Fabricators . | . . . . Repair Stations . | . . . . Recycling Units . | . . . . Scanalyzers . | . . . . Garrison Access . | . . . . Data Cores Recovered . | . . . . Used . | . . . . Hacking Detections 6 | . 6 . . Full Trace Events 1 | . 1 . . Feedback Events . | . . . . Feedback Blocked . | . . . . Robot Schematics Acquired . | . . . . Robots Built . | . . . . Authchips . | . . . . Time . | . . . . Total Robot Build Rating . | . . . . Part Schematics Acquired . | . . . . Parts Built . | . . . . Authchips . | . . . . Time . | . . . . Total Part Build Rating . | . . . . Part Studies Acquired . | . . . . Parts Repaired . | . . . . Time . | . . . . Parts Recycled . | . . . . Recycled Matter . | . . . . Retrieved Matter . | . . . . Retrieved Components . | . . . . Parts Scanalyzed . | . . . . Part Schematics Acquired . | . . . . Parts Damaged . | . . . . Bothacking | -11 -10 -10 -10 ------------ Run | Yrd Mat Min Sub Used RIF Installer . | . . . . Robots Hacked . | . . . . Non-combat . | . . . . Combat . | . . . . Robot Hacks Applied . | . . . . Relay Couplers Released . | . . . . Fabnet Peak Effective % . | . . . . Robots Rewired . | . . . . Allies Hacked . | . . . . Hacks Repelled . | . . . . Allies | -11 -10 -10 -10 -------- Run | Yrd Mat Min Sub Total Allies 1 | . . 1 . Largest Group 1 | . . 1 . Highest-Rated Group 31 | . . 31 . Highest-Rated Ally 31 | . . 31 . Total Orders . | . . . . Ally Attacks . | . . . . Total Damage . | . . . . Kills . | . . . . Allies Corrupted . | . . . . Allies Melted . | . . . . Intel | -11 -10 -10 -10 ------- Run | Yrd Mat Min Sub Active Infowar (turns) 3 | . 2 1 . Sensors 1 | . . 1 . Structural 2 | . 2 . . Robot Analysis Total . | . . . . Derelict Logs Recovered 2 | . . 2 . Drone Launches . | . . . . Drone Recoveries . | . . . . Exploration | -11 -10 -10 -10 ------------- Run | Yrd Mat Min Sub Turns Passed 3033 | 82 1756 1021 174 Spaces Moved 1916 | 68 982 745 121 Core 34 | 34 . . . Treads 1 | . 1 . . Legs 469 | 34 435 . . Wheels 1412 | . 546 745 121 Hover . | . . . . Flight . | . . . . Fastest Speed 50 | 50 105 105 105 Average Speed 122 | 85 140 105 105 Slowest Speed 260 | 120 260 120 105 Overloaded Moves . | . . . . Propulsion Burnouts . | . . . . Robots Hopped . | . . . . Potential Cave-ins . | . . . . Cave-ins Triggered . | . . . . Exploration Rate (%) 53 | 5 98 99 11 Regions Visited 3 Branch Regions 2 Pre-discovered Areas 2 | . . 2 . Known Exits Taken 1 | . 1 . . Unknown Exits Taken 2 | 1 . 1 . Scrap Searched 1 | . . 1 . Spaces Dug . | . . . . Terrain Destroyed . | . . . . Melee . | . . . . Projectile . | . . . . AOE . | . . . . Terrain Rammed . | . . . . Walls Destroyed . | . . . . Machines Disabled . | . . . . Actions | -11 -10 -10 -10 --------- Run | Yrd Mat Min Sub Total 2387 | 87 1247 899 154 Wait 192 | . 101 77 14 Move 1913 | 67 981 744 121 Hop . | . . . . Pick Up 58 | 11 34 11 2 Fast Attach 17 | . 14 3 . Attach 18 | 5 3 7 3 Detach . | . . . . Swap 20 | . 16 3 1 Drop 53 | 1 39 10 3 Fire 115 | 3 59 43 10 Melee . | . . . . Ram . | . . . . Kick . | . . . . Crush . | . . . . Escape Stasis . | . . . . Rewire 1 | . . 1 . Trap . | . . . . Miscellaneous . | . . . . Route ------- -11/Scrapyard -10/Materials (discovered 4 exits: [*Mat x3] / *Min) -10/Mines (discovered 3 exits: [*Mat x2] / [*Sub]) -10/Subcaves (discovered 1 exit: [*Mat]) History --------- Turn | Location | Event 2 | -11/Scrapyard | Met Revision 17 53 | -11/Scrapyard | Discovered new exit (range 8) 83 | -11/Scrapyard | Entered Materials 86 | -10/Materials | Discovered new exit (range 16) 320 | -10/Materials | Build established: Mutant 541 | -10/Materials | Discovered new exit (range 15) 1080 | -10/Materials | Identified exit to Mines 1265 | -10/Materials | Discovered new exit (range 16) 1634 | -10/Materials | Discovered new exit (range 15) 1839 | -10/Materials | Entered Mines 1913 | -10/Mines | Learned location of Storage (-8) 1918 | -10/Mines | Found a hidden stash of uninstalled traps 2033 | -10/Mines | Discovered new exit (range 15) 2082 | -10/Mines | Discovered new exit (range 3) 2176 | -10/Mines | Core integrity fell below 50% 2245 | -10/Mines | Learned Materials garrison access intel 2397 | -10/Mines | Escorted by a lone wolf Derelict 2465 | -10/Mines | Discovered new exit (range 9) 2525 | -10/Mines | A weapon hastily lodged in a ceiling crevice suddenly fell to the ground 2860 | -10/Mines | Entered Subcaves 2861 | -10/Subcaves | Approached by a straggling Scientist 2945 | -10/Subcaves | Core integrity fell below 20% 2953 | -10/Subcaves | Ambushed by swarm of Subdwellers 2971 | -10/Subcaves | Discovered new exit (range 14) 2974 | -10/Subcaves | Ambushed by Subdwellers from Twisted Machinery 3034 | -10/Subcaves | Destroyed by 6H-CON(R) with Subdweller Machine Gun Last Messages --------------- Who's the new fellow?" 30-MCP(c): "I think it's somewhere south of here" 02971_ EXIT=FOUND 02977_ Hvy. Assault Rifle destroyed. 02987_ Critical hit (Destroy). 02987_ Hvy. Assault Rifle destroyed. 02990_ D7-LUC(O) collects matter. 02995_ HV Slug penetrates Wall. 02997_ D7-LUC(O) collects matter. 02998_ HV Slug penetrates Wall. 30-MCP(c): "I think it's somewhere south of here" 03017_ HV Slug penetrates PZ-ZC6(R). 03017_ PZ-ZC6(R) suffers critical hit (Destroy). 03019_ PZ-ZC6(R) destroyed. 03020_ HV Slug penetrates 6H-CON(R). 03020_ 6H-CON(R) suffers critical hit (Destroy). 03023_ 8Q-WRM(h) destroyed. 03028_ 30-MCP(c) destroyed. 03033_ 6H-CON(R) affixes Scrap Shield Fragment to Scrap Shield. [Achievement: First Step to Greatness] Map ----- +----------------------------------------------------+ | ????????????????# ?????##"" #??######??????????? | | ????????????????????????##"" #### #??????????? | | ????????????????????????#""" ## % #??????????? | | ???????????????? ??##?##""" #??????????? | | ????????????? ### ## ## """" ##???????????? | | ????????????? """ % """" ##????????????? | | ????????????? % "" " #?????????????? | | ????????????? %## !#"## ### #?????????????? | | ???????? ???# ???# ########?? #????????????? | | ???????? ??#!&??#### ##????????? #???????????? | | ????????? ##&%??# |& #?????????? #???????????? | | ??????????# &??# %*#??????????? #???????????? | | ???????????# ### %& #####??????? ???????????? | | ????????????# "# %### "#???????? #??????????? | | ??????????????# "& &### ####?????? ??????????? | | ???????#????#### "" "### ##??????#?????????? | | ???????# ## ## " "### ##???????????????? | | ?????# #" #### ##??????????????? | | ?????# ## #### % #??????????????? | | ?????? #" #### " #?????????????? | | ????????# " ""# """#######?????????????? | | ????????# ## # "### " """##???????????????????? | | ????????????#?#; ### ""##????????????????????? | | ??????????????##! R !%= ##?????????????????????? | | ??????????????##%&* = #??????????????????????? | | ??????????????# *]%! @#??????????????????????? | | ??????????????## ! ##????? #????????????? | | ??????????## ## ## % #???????????? | | ??????????# ???????????? | | ?????????# % ???????????? | | ?????????#% #### R #???????????? | | ??????? ????### *%& % ## < #???????????? | | ?????? ???????# = ####??????????????????? | | ??????## ????????## %% ##?????????????????????? | | ???????# ??????????###;# "??????????????????????? | | ???????#?????????????### % ??????????????????????? | | ???????????????????????## ?????????????????????? | | ????????????????????????? #????????????????????? | | ?????????????????????????" ????????????????????? | | ????????????????????????? ???????????????????? | | ??????????????????????????## ??????????????????? | | ???????????????????????????? ??????????????????? | | ????????????????????????????? ???????????????????? | | ?????????????????????????????????????????????????? | | ?????????????????????????????????????????????????? | | ?????????????????????????????????????????????????? | | ?????????????????????????????????????????????????? | | ?????????????????????????????????????????????????? | | ?????????????????????????????????????????????????? | | ?????????????????????????????????????????????????? | +----------------------------------------------------+ Best States ------------- Heat Dissipation 39 Energy Generation 15 Energy Capacity 265 Matter Stores 300 Matter Capacity 450 Sight Range 16 Terrain Scan Density 10 Armor Coverage 150 Evasion (%) 55 Item Schematics ----------------- None Robot Schematics ------------------ None Fabricated ------------ Nothing Repaired ---------- Nothing Studied --------- None Alien Tech Used ----------------- None Achievements -------------- Crack Shot First Step to Greatness Loot Pinata One Hack Too Far Organ Harvest Shopping List There's More Where That Came From Uninvited Guest Challenges ------------ None Game ------ Seed MetamassImprovedMatterbank Manual? 0 Play Time 01:05:13 Cumulative 1.0 hours Start 2026.08.05 @ 21:07:18 End 2026.08.05 @ 23:39:52 Sessions 8 Manual Loads 0 Difficulty Rogue Special Mode None Game No. 1 Rogue 1 Adventurer 0 Explorer 0 Win Type - Total 0 Types 0/0/0/0/0/0/0/0/0/0 Lore% 0 Gallery% 2 Achievement% 1 Wizard Run 0 Options --------- Layout 0 ASCII 0 Keyboard 0 Movement Mouse Keybinds 0 Fullscreen 1 Font 18/SmallcapsGlow Map View 76x50 Zoom Use 0% Tactical HUD 1 Map Filters NONE Filters NONE Steam 0 RUN: fa6c26da-b4bf-4e47-b4a5-18ee605e7bbd